fUSD/lending_fUSD_20250904
["ID","MTS","AMOUNT","RATE_DAILY","PERIOD"]
[383503978,1756964611444,-4676.90118568,0.000195,2]
[383503979,1756964618339,-21321.60494266,0.000195,2]
[383503982,1756964679991,-300.0,0.00018998,2]
[383503983,1756964682338,-1437.57491076,0.00018998,2]
[383503984,1756964686359,-16.30508924,0.00018998,2]
[383503985,1756964722299,-295.92568209,0.00018986,2]
[383503986,1756964726043,-262.87831032,0.00018986,2]
[383503987,1756964727976,-63.58600759,0.00018986,2]
[383503988,1756964746114,160.0,0.00018976,7]
[383503990,1756964804458,-360.0,0.00019134,2]
[383503991,1756964870577,486476.51418483,0.0002401,30]
[383503992,1756964898260,681589.36999011,0.0003,120]
[383503993,1756964914096,-241.78598691,0.00019177,2]
[383503994,1756964914124,-16.42802618,0.00019177,2]
[383503995,1756964922576,-190.0,0.00019178,2]
[383503996,1756964930329,-200.0,0.00019178,2]
[383503997,1756964938355,-205.86319482,0.00019178,2]
[383503998,1756964946476,-500.0,0.00019178,2]
[383503999,1756964950920,-352.52057861,0.00018958,2]
[383504000,1756964954899,-470.32,0.00018917,2]
[383504001,1756964955593,-500.0,0.00018917,2]
[383504002,1756964956478,-160.26917084,0.00018917,2]
[383504003,1756964958045,-209.75436559,0.00018917,2]
[383504004,1756964961210,-178.56563441,0.00018917,2]
[383504005,1756964962681,-201.87,0.00018917,2]
[383504006,1756964964233,-250.0,0.00018917,2]
[383504007,1756964969868,-209.41,0.00018917,2]
[383504008,1756964970519,-400.0,0.00018917,2]
[383504009,1756964973455,-442.83,0.00018917,2]
[383504010,1756964975065,-317.14739681,0.00018917,2]
[383504011,1756964976809,-4.44343235,0.00018917,2]
[383504012,1756964976833,-269.79418616,0.00018958,2]
[383504013,1756964978471,-162.89476477,0.00018958,2]
[383504014,1756964978492,-74.21047046,0.00018958,2]
[383504015,1756964986559,-440.41,0.00019178,2]
[383504016,1756964995407,-325.82377363,0.00019178,2]
[383504017,1756965007234,-400.0,0.00019178,2]
[383504018,1756965012270,226.01240164,0.00018,2]
[383504019,1756965014339,-400.0,0.00019178,2]
[383504020,1756965021374,-400.0,0.00019178,2]
[383504021,1756965029343,-187.23303155,0.00019178,2]
[383504022,1756965029379,-25.5339369,0.00019378,2]
[383504024,1756965031482,-171.65617399,0.00019378,2]
[383504025,1756965031491,-1000.0,0.000194,2]
[383504026,1756965031501,-1701.87,0.000194,2]
[383504027,1756965031511,-300.0,0.00019478,2]
[383504028,1756965031521,-1200.0,0.00019478,2]
[383504029,1756965031531,-300.0,0.00019478,2]
[383504030,1756965031540,-500.0,0.00019479,2]
[383504031,1756965031549,-315.09942874,0.00019479,2]
[383504032,1756965031559,-207.94319133,0.00019479,2]
[383504033,1756965031568,-550.0,0.00019479,2]
[383504034,1756965031577,-20031.08508907,0.0001948,2]
[383504035,1756965031587,-175.31114126,0.0001948,2]
[383504036,1756965031596,-457.01711382,0.00019499,2]
[383504037,1756965031621,-542.98288618,0.00019499,2]
[383504038,1756965031631,-1717.56103189,0.00019499,2]
[383504039,1756965031641,-108679.45608193,0.000195,2]
[383504040,1756965031710,-754.324,0.000195,2]
[383504041,1756965031723,-2215.52211745,0.000195,2]
[383504060,1756965037636,-73142.4956512,0.000195,2]
[383504061,1756965037647,-315.31919124,0.000195,2]
[383504062,1756965037658,-801.95958201,0.00019564,2]
[383504063,1756965037668,-16750.1896156,0.00019745,2]
[383504064,1756965037678,-801.95958201,0.00019748,2]
[383504065,1756965037688,-500.0,0.00019808,2]
[383504066,1756965037698,-20031.08508907,0.00019861,2]
[383504067,1756965037710,-250.0,0.00019876,2]
[383504068,1756965037720,-276.5419,0.000199,2]
[383504069,1756965037730,-620.5493,0.000199,2]
[383504070,1756965037740,-6957.4849,0.000199,2]
[383504071,1756965037750,-231.6517,0.000199,2]
[383504072,1756965037761,-676.6574,0.000199,2]
[383504073,1756965037771,-2500.0,0.000199,2]
[383504074,1756965037781,-458.75859971,0.000199,2]
[383504075,1756965037791,-200.569,0.000199,2]
[383504076,1756965037801,-1784.697,0.000199,2]
[383504077,1756965037811,-5000.0,0.000199,2]
[383504078,1756965037820,-151.35234958,0.000199,2]
[383504079,1756965037830,-450.96421306,0.000199,2]
[383504080,1756965037840,-2573.98484382,0.000199,2]
[383504081,1756965037851,-859.42,0.00019906,2]
[383504082,1756965037861,-2091.42403,0.0001992,2]
[383504083,1756965037875,-2091.42403,0.0001994,2]
[383504084,1756965037884,-150.0,0.00019948,2]
[383504085,1756965037894,-162.25757601,0.00019948,2]
[383504086,1756965037904,-150.0,0.00019948,2]
[383504087,1756965037914,-156.89004853,0.00019948,2]
[383504088,1756965037924,-155.0135244,0.00019948,2]
[383504089,1756965037934,-150.0,0.00019948,2]
[383504090,1756965037944,-152.91455282,0.00019948,2]
[383504091,1756965037953,-222.49552364,0.00019948,2]
[383504092,1756965037963,-150.0,0.00019948,2]
[383504093,1756965037974,-340.0,0.00019973,2]
[383504094,1756965037983,-400.0,0.00019973,2]
[383504095,1756965037993,-800.0,0.00019973,2]
[383504096,1756965038003,-500.0,0.00019973,2]
[383504097,1756965038013,-449.86059194,0.00019973,2]
[383504098,1756965038022,-351.063536,0.00019973,2]
[383504099,1756965038032,-502.3290438,0.00019973,2]
[383504100,1756965038043,-500.0,0.00019973,2]
[383504101,1756965038053,-501.88947314,0.00019973,2]
[383504102,1756965038062,-158.85748262,0.0001998,2]
[383504103,1756965038072,-500.0,0.0001998,2]
[383504104,1756965038082,-500.0,0.00019988,2]
[383504105,1756965038091,-285.78128394,0.00019988,2]
[383504106,1756965038104,-151.0,0.00019988,2]
[383504107,1756965038114,-151.0,0.00019988,2]
[383504108,1756965038124,-151.0,0.00019988,2]
[383504109,1756965038135,-151.0,0.00019988,2]
[383504110,1756965038144,-151.0,0.00019988,2]
[383504111,1756965038155,-255.30213663,0.00019988,2]
[383504112,1756965038165,-200.0,0.00019988,2]
[383504113,1756965038175,-209.26260173,0.0001999,2]
[383504114,1756965038185,-1141.6203612,0.00019996,2]
[383504115,1756965038195,-1035.24281779,0.00019999,2]
[383504116,1756965038205,-284179.56432215,0.0002,4]
[383504117,1756965038215,-3304.39478364,0.0002,4]
[383504118,1756965038225,-1841698.06346618,0.0002,2]
[383504119,1756965038235,-26982.06243604,0.0002,2]
[383504120,1756965038246,-3950.0,0.0002,2]
[383504121,1756965038256,-1271.71202482,0.0002,2]
[383504122,1756965038266,-7244.75747251,0.0002,2]
[383504123,1756965038276,-1026.52431661,0.0002,2]
[383504124,1756965038286,-2812.24900413,0.0002,2]
[383504125,1756965038296,-90420.34464239,0.0002,2]
[383504126,1756965038306,-100550.60800774,0.0002,2]
[383504127,1756965038315,-13998.31342909,0.0002,2]
[383504128,1756965038325,-4411.9243532,0.0002,2]
[383504129,1756965038338,-151.0,0.0002,2]
[383504130,1756965038348,-151.0,0.0002,2]
[383504131,1756965038358,-151.0,0.0002,2]
[383504132,1756965038368,-151.0,0.0002,2]
[383504133,1756965038377,-151.0,0.0002,2]
[383504134,1756965038388,-151.0,0.0002,2]
[383504135,1756965038398,-151.0,0.0002,2]
[383504136,1756965038407,-151.0,0.0002,2]
[383504137,1756965038417,-151.0,0.0002,2]
[383504138,1756965038427,-151.0,0.0002,2]
[383504139,1756965038437,-300.0,0.0002,2]
[383504140,1756965038447,-194.80642281,0.0002,2]
[383504141,1756965038456,-300.0,0.0002,3]
[383504142,1756965038466,-500.0,0.0002,2]
[383504143,1756965038476,-4000.0,0.0002,4]
[383504144,1756965038486,-526.96021039,0.0002,2]
[383504145,1756965038496,-81512.0402439,0.00020002,2]
[383504146,1756965038506,-3021.6195966,0.00020002,2]
[383504147,1756965038515,-151.0,0.00020002,2]
[383504148,1756965038525,-271.207429,0.00020002,2]
[383504149,1756965038535,-151.0,0.00020002,2]
[383504150,1756965038545,-11446.1037293,0.00020002,2]
[383504151,1756965038554,-151.0,0.00020002,2]
[383504152,1756965038567,-3018.0676573,0.00020002,2]
[383504153,1756965038577,-1048.4798494,0.00020002,2]
[383504154,1756965038587,-8776.13473935,0.0002001,2]
[383504155,1756965038597,-2091.42403,0.0002001,2]
[383504156,1756965038608,-500.0,0.00020043,2]
[383504157,1756965038966,-2091.42403,0.0002007,2]
[383504158,1756965038977,-500.0,0.00020098,2]
[383504159,1756965038987,-500.0,0.0002011,2]
[383504160,1756965038998,-172.36,0.00020117,2]
[383504161,1756965039008,-2091.42403,0.0002013,2]
[383504162,1756965039018,-217.02,0.00020187,2]
[383504163,1756965039028,-2091.42403,0.000202,2]
[383504164,1756965039038,-2573.98484379,0.00020204,2]
[383504165,1756965039048,-20031.08508907,0.00020243,2]
[383504166,1756965039058,-599.0,0.00020274,2]
[383504167,1756965039068,-173.64,0.00020355,2]
[383504168,1756965039078,-2573.98484379,0.00020509,2]
[383504169,1756965039088,-1000.0,0.00020521,2]
[383504170,1756965039098,-20031.08508907,0.00020624,2]
[383504171,1756965039108,-161.17,0.00020649,2]
[383504172,1756965039118,-500.0,0.00020685,2]
[383504173,1756965039127,-22241.21426535,0.000207,2]
[383504174,1756965039137,-151.0,0.00020748,2]
[383504175,1756965039147,-2573.98484379,0.00020813,2]
[383504176,1756965039156,-63904.66068185,0.0002085,2]
[383504177,1756965039165,-859.42,0.00020854,2]
[383504178,1756965039175,-322.6107,0.00020929,2]
[383504179,1756965039184,-441.17832392,0.00020929,2]
[383504180,1756965039193,-201.93286099,0.00020929,2]
[383504181,1756965039203,-345.08525623,0.00020929,2]
[383504182,1756965039212,-292.36741498,0.00020929,2]
[383504183,1756965039222,-3057.93397678,0.00020929,2]
[383504184,1756965039231,-267.46074303,0.00020929,2]
[383504185,1756965039241,-194806.71582769,0.00021,2]
[383504186,1756965039250,-700.22754792,0.00021,2]
[383504187,1756965039259,-18977.50847356,0.00021,2]
[383504188,1756965039268,-1170.91591973,0.00021,2]
[383504189,1756965039278,-193.27002035,0.00021,2]
[383504190,1756965039288,-151.0,0.00021,2]
[383504191,1756965039297,-20031.08508907,0.00021006,2]
[383504192,1756965039307,-150.0,0.00021056,4]
[383504193,1756965039318,-1229.8376123,0.00021068,2]
[383504194,1756965039328,-250.0,0.00021096,2]
[383504195,1756965039338,-417.0,0.000211,2]
[383504196,1756965039347,-2000.0,0.000211,2]
[383504197,1756965039359,-16401.5766817,0.00021111,2]
[383504198,1756965039368,-2573.98484379,0.00021117,2]
[383504199,1756965039378,-420.0,0.00021221,2]
[383504200,1756965039388,-420.0,0.00021221,2]
[383504201,1756965039398,-1260.0,0.00021269,2]
[383504202,1756965039407,-1680.0,0.00021323,2]
[383504203,1756965039417,-41458.0,0.0002135,2]
[383504204,1756965039426,-20031.08508907,0.00021387,2]
[383504206,1756965039435,-2573.98484379,0.00021422,2]
[383504207,1756965039444,-250.0,0.00021426,2]
[383504208,1756965039453,-250.0,0.00021427,2]
[383504209,1756965039463,-217.91063492,0.000215,2]
[383504210,1756965039472,-1137.41971572,0.00021524,2]
[383504211,1756965039482,-173.64,0.00021725,2]
[383504212,1756965039492,-2573.98484379,0.00021726,2]
[383504213,1756965039501,-502.89,0.00021757,2]
[383504214,1756965039516,-1173.01,0.00021757,2]
[383504215,1756965039525,-435.62,0.00021757,2]
[383504216,1756965039534,-1076.99,0.00021757,2]
[383504217,1756965039544,-9999.99,0.00021757,2]
[383504218,1756965039553,-999.99,0.00021757,2]
[383504219,1756965039562,-3600.31,0.00021757,2]
[383504220,1756965039572,-1723.26,0.00021757,2]
[383504221,1756965039583,-4910.77,0.00021757,2]
[383504222,1756965039593,-150.99,0.00021757,2]
[383504223,1756965039604,-136698.01,0.00021757,2]
[383504224,1756965039613,-4432.48,0.00021757,2]
[383504225,1756965039624,-9999.99,0.00021757,2]
[383504226,1756965039635,-16032.94,0.00021757,2]
[383504227,1756965039645,-150.99,0.00021757,2]
[383504228,1756965039656,-7013.67,0.00021757,2]
[383504229,1756965039668,-167.9,0.00021757,2]
[383504230,1756965039678,-299.99,0.00021757,7]
[383504231,1756965039689,-20031.08508907,0.00021769,2]
[383504232,1756965039698,-344.98698427,0.00021802,7]
[383504233,1756965039709,-859.42,0.00021802,2]
[383504234,1756965039720,-1425.0,0.00021844,2]
[383504235,1756965039729,-150.0,0.00021916,2]
[383504236,1756965039739,-400.0,0.00021917,2]
[383504237,1756965039748,-400.0,0.00021917,2]
[383504238,1756965039758,-400.0,0.00021917,2]
[383504239,1756965039768,-400.0,0.00021917,2]
[383504240,1756965039779,-400.0,0.00021917,2]
[383504241,1756965039789,-500.0,0.00021917,2]
[383504242,1756965039799,-400.0,0.00021917,2]
[383504243,1756965039808,-400.0,0.00021917,2]
[383504244,1756965039817,-400.0,0.00021917,2]
[383504245,1756965039827,-400.0,0.00021917,2]
[383504246,1756965039836,-400.0,0.00021917,2]
[383504247,1756965039845,-402.79397887,0.00021917,2]
[383504248,1756965039854,-400.0,0.00021917,2]
[383504249,1756965039863,-400.0,0.00021917,2]
[383504250,1756965039872,-400.0,0.00021917,2]
[383504251,1756965039882,-400.0,0.00021917,2]
[383504252,1756965039891,-400.0,0.00021917,2]
[383504253,1756965039900,-400.0,0.00021917,2]
[383504254,1756965039910,-404.74758289,0.00021917,2]
[383504255,1756965039919,-400.0,0.00021917,2]
[383504256,1756965039929,-400.0,0.00021917,2]
[383504257,1756965039938,-404.5721895,0.00021917,2]
[383504258,1756965039948,-400.0,0.00021917,2]
[383504259,1756965039957,-400.0,0.00021917,2]
[383504260,1756965039967,-400.0,0.00021917,2]
[383504261,1756965039977,-400.0,0.00021917,2]
[383504262,1756965039987,-400.0,0.00021917,2]
[383504263,1756965039996,-400.0,0.00021917,2]
[383504264,1756965040006,-400.0,0.00021917,2]
[383504265,1756965040015,-402.33675946,0.00021917,2]
[383504266,1756965040025,-413.80116446,0.00021917,2]
[383504267,1756965040034,-400.0,0.00021917,2]
[383504268,1756965040044,-513.85508268,0.00021917,2]
[383504269,1756965040054,-400.0,0.00021917,2]
[383504271,1756965040063,-400.0,0.00021917,2]
[383504272,1756965040074,-400.0,0.00021917,2]
[383504273,1756965040084,-405.6467845,0.00021917,2]
[383504274,1756965040094,-400.0,0.00021917,2]
[383504275,1756965040105,-400.0,0.00021917,2]
[383504276,1756965040115,-400.0,0.00021917,2]
[383504277,1756965040124,-400.0,0.00021917,2]
[383504278,1756965040133,-410.20046508,0.00021917,2]
[383504279,1756965040143,-400.0,0.00021917,2]
[383504280,1756965040153,-400.0,0.00021917,2]
[383504281,1756965040163,-419.85217499,0.00021917,2]
[383504282,1756965040173,-327.78932144,0.00021917,2]
[383504283,1756965040182,-400.0,0.00021917,2]
[383504284,1756965040193,-475.79551208,0.00021917,2]
[383504285,1756965040203,-400.0,0.00021917,2]
[383504286,1756965040214,-400.0,0.00021917,2]
[383504287,1756965040225,-400.0,0.00021917,2]
[383504288,1756965040235,-400.0,0.00021917,2]
[383504289,1756965040244,-400.0,0.00021917,2]
[383504290,1756965040254,-400.0,0.00021917,2]
[383504291,1756965040264,-400.0,0.00021917,2]
[383504292,1756965040274,-400.0,0.00021917,2]
[383504293,1756965040285,-400.0,0.00021917,2]
[383504294,1756965040295,-400.0,0.00021917,2]
[383504295,1756965040304,-403.2521124,0.00021917,2]
[383504296,1756965040313,-400.0,0.00021917,2]
[383504297,1756965040324,-400.0,0.00021917,2]
[383504298,1756965040333,-239.72691137,0.00021917,2]
[383504299,1756965040343,-400.0,0.00021917,2]
[383504300,1756965040353,-400.0,0.00021917,2]
[383504301,1756965040363,-400.0,0.00021917,2]
[383504302,1756965040372,-400.0,0.00021917,2]
[383504303,1756965040381,-400.0,0.00021917,2]
[383504304,1756965040392,-400.0,0.00021917,2]
[383504305,1756965040401,-400.0,0.00021917,2]
[383504306,1756965040412,-400.0,0.00021917,2]
[383504307,1756965040421,-400.0,0.00021917,2]
[383504308,1756965040431,-400.0,0.00021917,2]
[383504309,1756965040441,-400.0,0.00021917,2]
[383504310,1756965040451,-441.39,0.00021917,2]
[383504311,1756965040460,-400.0,0.00021917,2]
[383504312,1756965040470,-400.0,0.00021917,2]
[383504313,1756965040479,-511.72589673,0.00021917,2]
[383504314,1756965040489,-400.0,0.00021917,2]
[383504315,1756965040502,-400.0,0.00021917,2]
[383504316,1756965040513,-409.69046096,0.00021917,2]
[383504317,1756965040524,-400.0,0.00021917,2]
[383504318,1756965040534,-197.80688736,0.00021917,2]
[383504319,1756965040545,-400.0,0.00021917,2]
[383504320,1756965040555,-400.0,0.00021917,2]
[383504321,1756965040565,-406.21669641,0.00021917,2]
[383504322,1756965040575,-400.0,0.00021917,2]
[383504323,1756965040584,-400.0,0.00021917,2]
[383504324,1756965040594,-400.0,0.00021917,2]
[383504325,1756965040605,-400.0,0.00021917,2]
[383504326,1756965040614,-400.0,0.00021917,2]
[383504327,1756965040623,-400.0,0.00021917,2]
[383504328,1756965040633,-400.0,0.00021917,2]
[383504329,1756965040643,-400.0,0.00021917,2]
[383504330,1756965040652,-407.02875636,0.00021917,2]
[383504331,1756965040661,-407.77294754,0.00021917,2]
[383504332,1756965040671,-400.0,0.00021917,2]
[383504333,1756965040680,-400.0,0.00021917,2]
[383504334,1756965040690,-400.0,0.00021917,2]
[383504335,1756965040699,-527.66876423,0.00021917,2]
[383504336,1756965040708,-400.0,0.00021917,2]
[383504337,1756965040717,-400.0,0.00021917,2]
[383504338,1756965040726,-400.0,0.00021917,2]
[383504339,1756965040736,-400.0,0.00021917,2]
[383504340,1756965040745,-400.0,0.00021917,2]
[383504341,1756965040754,-400.0,0.00021917,2]
[383504342,1756965040764,-400.0,0.00021917,2]
[383504343,1756965040773,-407.46142455,0.00021917,2]
[383504344,1756965040782,-400.0,0.00021917,2]
[383504345,1756965040792,-400.0,0.00021917,2]
[383504346,1756965040801,-400.0,0.00021917,2]
[383504347,1756965040810,-400.0,0.00021917,2]
[383504348,1756965040820,-400.0,0.00021917,2]
[383504349,1756965040829,-400.0,0.00021917,2]
[383504350,1756965040839,-400.0,0.00021917,2]
[383504351,1756965040848,-400.0,0.00021917,2]
[383504352,1756965040859,-400.0,0.00021917,2]
[383504353,1756965040869,-400.0,0.00021917,2]
[383504354,1756965040878,-403.26812543,0.00021917,2]
[383504355,1756965040887,-400.0,0.00021917,2]
[383504356,1756965040897,-400.0,0.00021917,2]
[383504357,1756965040907,-401.91641782,0.00021917,2]
[383504358,1756965040916,-400.0,0.00021917,2]
[383504359,1756965040926,-400.0,0.00021917,2]
[383504360,1756965040946,-400.0,0.00021917,2]
[383504361,1756965040956,-403.18015289,0.00021917,2]
[383504362,1756965040966,-495.85884043,0.00021917,2]
[383504363,1756965040976,-400.0,0.00021917,2]
[383504364,1756965040985,-400.0,0.00021917,2]
[383504365,1756965040995,-402.97953865,0.00021917,2]
[383504366,1756965041004,-165.96688979,0.00021917,2]
[383504367,1756965041014,-400.0,0.00021917,2]
[383504368,1756965041023,-400.0,0.00021917,2]
[383504369,1756965041033,-400.0,0.00021917,2]
[383504370,1756965041043,-400.0,0.00021917,2]
[383504371,1756965041052,-400.0,0.00021917,2]
[383504372,1756965041061,-400.0,0.00021917,2]
[383504373,1756965041071,-400.0,0.00021917,2]
[383504374,1756965041080,-404.90402412,0.00021917,2]
[383504375,1756965041089,-402.29438481,0.00021917,2]
[383504376,1756965041100,-400.0,0.00021917,2]
[383504377,1756965041111,-402.05300732,0.00021917,2]
[383504378,1756965041121,-400.0,0.00021917,2]
[383504379,1756965041130,-403.49674605,0.00021917,2]
[383504380,1756965041140,-400.0,0.00021917,2]
[383504381,1756965041149,-519.48170156,0.00021917,2]
[383504382,1756965041159,-400.0,0.00021917,2]
[383504383,1756965041169,-400.0,0.00021917,2]
[383504384,1756965041179,-400.0,0.00021917,2]
[383504385,1756965041188,-400.0,0.00021917,2]
[383504386,1756965041197,-400.0,0.00021917,2]
[383504387,1756965041207,-516.75725778,0.00021917,2]
[383504388,1756965041216,-400.0,0.00021917,2]
[383504389,1756965041226,-400.0,0.00021917,2]
[383504390,1756965041236,-400.0,0.00021917,2]
[383504391,1756965041245,-400.0,0.00021917,2]
[383504392,1756965041255,-400.0,0.00021917,2]
[383504393,1756965041265,-400.0,0.00021917,2]
[383504394,1756965041275,-400.0,0.00021917,2]
[383504395,1756965041284,-400.0,0.00021917,2]
[383504396,1756965041294,-403.3815362,0.00021917,2]
[383504397,1756965041303,-400.0,0.00021917,2]
[383504398,1756965041317,-403.23925709,0.00021917,2]
[383504399,1756965041327,-400.0,0.00021917,2]
[383504400,1756965041336,-400.0,0.00021917,2]
[383504401,1756965041346,-401.91942752,0.00021917,2]
[383504402,1756965041357,-400.0,0.00021917,2]
[383504403,1756965041366,-1070.68,0.00021917,2]
[383504404,1756965041376,-400.0,0.00021917,2]
[383504405,1756965041385,-400.0,0.00021917,2]
[383504406,1756965041395,-400.0,0.00021917,2]
[383504407,1756965041405,-400.0,0.00021917,2]
[383504408,1756965041417,-400.0,0.00021917,2]
[383504409,1756965041426,-400.0,0.00021917,2]
[383504410,1756965041436,-400.0,0.00021917,2]
[383504411,1756965041446,-404.45853916,0.00021917,2]
[383504412,1756965041456,-400.0,0.00021917,2]
[383504413,1756965041465,-400.0,0.00021917,2]
[383504414,1756965041476,-400.0,0.00021917,2]
[383504415,1756965041485,-400.0,0.00021917,2]
[383504416,1756965041495,-820.75,0.00021917,2]
[383504417,1756965041505,-400.0,0.00021917,2]
[383504418,1756965041514,-400.0,0.00021917,2]
[383504419,1756965041524,-400.0,0.00021917,2]
[383504420,1756965041534,-400.0,0.00021917,2]
[383504421,1756965041544,-529.48,0.00021917,2]
[383504422,1756965041554,-400.0,0.00021917,2]
[383504423,1756965041567,-400.0,0.00021917,2]
[383504424,1756965041577,-400.0,0.00021917,2]
[383504425,1756965041587,-400.0,0.00021917,2]
[383504426,1756965041597,-400.0,0.00021917,2]
[383504427,1756965041608,-402.36347279,0.00021917,2]
[383504428,1756965041618,-400.0,0.00021917,2]
[383504429,1756965041633,-400.0,0.00021917,2]
[383504430,1756965041644,-402.20248286,0.00021917,2]
[383504431,1756965041654,-400.0,0.00021917,2]
[383504432,1756965041664,-400.0,0.00021917,2]
[383504433,1756965041674,-400.0,0.00021917,2]
[383504434,1756965041683,-400.0,0.00021917,2]
[383504435,1756965041694,-400.0,0.00021917,2]
[383504436,1756965041704,-400.0,0.00021917,2]
[383504437,1756965041714,-400.0,0.00021917,2]
[383504438,1756965041724,-400.0,0.00021917,2]
[383504439,1756965041734,-400.0,0.00021917,2]
[383504440,1756965041744,-400.0,0.00021917,2]
[383504441,1756965041760,-400.0,0.00021917,2]
[383504442,1756965041771,-400.0,0.00021917,2]
[383504443,1756965041781,-400.0,0.00021917,2]
[383504444,1756965041791,-400.0,0.00021917,2]
[383504445,1756965041801,-400.0,0.00021917,2]
[383504446,1756965041811,-400.0,0.00021917,2]
[383504447,1756965041821,-400.0,0.00021917,2]
[383504448,1756965041831,-400.0,0.00021917,2]
[383504449,1756965041840,-400.0,0.00021917,2]
[383504450,1756965041850,-400.0,0.00021917,2]
[383504451,1756965041861,-400.0,0.00021917,2]
[383504452,1756965041871,-400.0,0.00021917,2]
[383504453,1756965041880,-400.0,0.00021917,2]
[383504454,1756965041890,-400.0,0.00021917,2]
[383504455,1756965041899,-263.4553932,0.00021917,2]
[383504456,1756965041909,-400.0,0.00021917,2]
[383504457,1756965041919,-400.0,0.00021917,2]
[383504458,1756965041929,-400.0,0.00021917,2]
[383504459,1756965041938,-452.54,0.00021917,2]
[383504460,1756965041948,-400.0,0.00021917,2]
[383504461,1756965041958,-400.0,0.00021917,2]
[383504462,1756965041968,-400.0,0.00021917,2]
[383504463,1756965041977,-400.0,0.00021917,2]
[383504464,1756965041987,-400.0,0.00021917,2]
[383504465,1756965041997,-400.0,0.00021917,2]
[383504466,1756965042006,-400.0,0.00021917,2]
[383504467,1756965042016,-400.0,0.00021917,2]
[383504468,1756965042029,-400.0,0.00021917,2]
[383504469,1756965042039,-400.0,0.00021917,2]
[383504470,1756965042049,-400.0,0.00021917,2]
[383504471,1756965042059,-400.0,0.00021917,2]
[383504472,1756965042069,-400.0,0.00021917,2]
[383504473,1756965042079,-400.0,0.00021917,2]
[383504474,1756965042088,-400.0,0.00021917,2]
[383504475,1756965042098,-400.0,0.00021917,2]
[383504476,1756965042111,-400.0,0.00021917,2]
[383504477,1756965042121,-400.0,0.00021917,2]
[383504478,1756965042131,-405.15756455,0.00021917,2]
[383504479,1756965042141,-400.0,0.00021917,2]
[383504480,1756965042151,-400.0,0.00021917,2]
[383504481,1756965042161,-400.0,0.00021917,2]
[383504482,1756965042171,-400.0,0.00021917,2]
[383504483,1756965042181,-400.0,0.00021917,2]
[383504484,1756965042191,-406.69501197,0.00021917,2]
[383504485,1756965042201,-400.0,0.00021917,2]
[383504486,1756965042210,-400.0,0.00021917,2]
[383504487,1756965042220,-400.0,0.00021917,2]
[383504488,1756965042229,-400.0,0.00021917,2]
[383504489,1756965042239,-400.0,0.00021917,2]
[383504490,1756965042249,-400.0,0.00021917,2]
[383504491,1756965042259,-400.0,0.00021917,2]
[383504492,1756965042268,-400.0,0.00021917,2]
[383504494,1756965042278,-400.0,0.00021917,2]
[383504495,1756965042288,-400.0,0.00021917,2]
[383504497,1756965042299,-400.0,0.00021917,2]
[383504498,1756965042309,-400.0,0.00021917,2]
[383504500,1756965042320,-400.0,0.00021917,2]
[383504502,1756965042331,-400.0,0.00021917,2]
[383504505,1756965042341,-400.0,0.00021917,2]
[383504508,1756965042350,-400.0,0.00021917,2]
[383504510,1756965042362,-400.0,0.00021917,2]